bitfinex-derivatives/quotes_ETHF0:USTF0_20250824
["timestamp","ask_amount","ask_price","bid_price","bid_amount"]
[1756027837272,1.99016051,4776.9,4776.8,1.73457]
[1756027837573,1.99016051,4776.9,4776.8,1.91128639]
[1756027837769,1.99016051,4776.9,4776.8,1.73457]
[1756027837974,1.99016051,4776.9,4776.8,1.91128879]
[1756027844780,0.65626051,4776.9,4776.8,1.91128879]
[1756027845378,0.22356051,4776.9,4776.8,1.91128879]
[1756027845679,5.1e-07,4776.9,4776.8,1.91128879]
[1756027847581,5.1e-07,4776.9,4776.8,1.90928224]
[1756027853986,1.329,4778.1,4778.0,0.64317]
[1756027854390,1.329,4778.1,4778.0,0.97577]
[1756027856588,1.329,4778.1,4778.0,1.73697]
[1756027856886,1.329,4778.1,4778.0,0.97577]
[1756027857592,0.7625,4778.5,4778.4,1.73693]
[1756027857800,1.329,4778.5,4778.4,1.73693]
[1756027858394,0.7625,4778.5,4778.4,1.73693]
[1756027859295,0.6073,4778.5,4778.4,1.73693]
[1756027861596,0.4573,4778.5,4778.4,1.73693]
[1756027861899,1.094,4778.7,4778.6,1.73691]
[1756027862197,1.329,4778.7,4778.6,1.73691]
[1756027863604,1.50716183,4779.6,4779.3,0.41865]
[1756027863605,0.5402,4779.4,4779.3,0.41865]
[1756027863988,1.329,4779.4,4779.3,0.41865]
[1756027864492,2.83616183,4779.4,4779.3,0.41865]
[1756027865405,1.329,4779.4,4779.3,0.41865]
[1756027865910,2.00882063,4779.4,4779.3,0.41865]
[1756027874314,21.05782063,4779.4,4779.3,0.41865]
[1756027876915,20.26902063,4779.4,4779.2,0.41866]
[1756027877118,2.00762063,4779.3,4779.2,0.41866]
[1756027879819,20.3738,4779.3,4779.2,0.41866]
[1756027880019,21.05399422,4779.3,4779.2,0.41866]
[1756027881608,21.05399422,4779.3,4778.6,1.04679]
[1756027881609,0.4462,4779.2,4779.1,0.41866]
[1756027881814,2.00799422,4779.2,4779.1,0.41866]
[1756027883218,0.5588,4779.1,4778.4,0.347]
[1756027883424,0.5455,4778.5,4778.4,1.13613]
[1756027883617,1.3278,4778.5,4778.4,1.13613]
[1756027883809,2.00799422,4778.5,4778.4,1.13613]
[1756027884015,2.00799422,4778.5,4778.4,1.58983]
[1756027884215,2.00799422,4778.5,4778.4,1.74653]
[1756027887522,3.51515605,4778.5,4778.4,1.74653]
[1756027891823,2.18735605,4778.5,4778.4,1.74653]
[1756027892027,2.18735605,4778.5,4778.4,1.93277823]
[1756027893327,0.68019422,4778.5,4778.4,1.93277723]
[1756027894419,0.1574,4778.7,4778.6,0.94581]
[1756027894620,1.28822937,4778.7,4778.6,1.74651]
[1756027894824,1.77972937,4778.7,4778.6,1.74651]
[1756027895219,2.01242937,4778.7,4778.6,1.74651]
[1756027900128,1.77972937,4778.7,4778.6,1.74651]
[1756027904131,1.99622937,4778.7,4778.6,1.74651]
[1756027906131,1.99622937,4778.7,4778.6,1.93486237]
[1756027906930,1.99622937,4778.7,4778.6,1.93486563]
[1756027907530,1.99622937,4778.7,4778.6,1.93486871]
[1756027907831,1.99622937,4778.7,4778.6,2.29180594]
[1756027913528,1.99622937,4778.7,4778.6,2.10344723]
[1756027913833,1.99622937,4778.7,4778.6,2.29981195]
[1756027916934,1.99622937,4778.7,4778.6,2.29981135]
[1756027918036,2.01458162,4778.7,4778.6,2.29981135]
[1756027920635,1.46198162,4778.7,4778.6,2.29981135]
[1756027920836,0.86038162,4778.7,4778.6,2.29981135]
[1756027921131,1.45028162,4778.7,4778.6,2.29981135]
[1756027921335,1.79318162,4778.7,4778.6,2.29981135]
[1756027924333,3.30034345,4778.7,4778.6,2.29981135]
[1756027925638,0.86038162,4778.7,4778.6,2.29981135]
[1756027925935,1.14638162,4778.7,4778.6,2.29981135]
[1756027926131,1.30518162,4778.7,4778.6,2.29980748]
[1756027927538,0.70298162,4778.7,4778.6,2.29980748]
[1756027928238,1.15718162,4778.7,4778.6,2.56612537]
[1756027928638,0.70298162,4778.7,4778.6,2.56612537]
[1756027929636,1.15718162,4778.7,4778.6,2.56612537]
[1756027931233,0.70298162,4778.7,4778.6,2.56612537]
[1756027931433,1.96136183,4779.3,4779.2,1.3383]
[1756027931636,0.4542,4779.3,4779.2,1.80097814]
[1756027932138,5.3542,4779.3,4779.2,0.46267814]
[1756027932335,5.3542,4779.3,4778.6,0.35693723]
[1756027932536,0.5477,4778.7,4778.6,0.35693723]
[1756027932731,20.2275,4778.7,4778.6,0.35693723]
[1756027934533,20.2275,4778.7,4778.1,0.43503997]
[1756027934534,24.2275,4778.7,4778.1,0.43503997]
[1756027934735,0.6807,4778.2,4778.1,0.85378997]
[1756027934930,19.7117,4778.2,4778.1,0.43503997]
[1756027936435,19.7117,4778.2,4777.3,1.27566]
[1756027936436,23.7117,4778.2,4777.8,0.41878]
[1756027936642,0.2633,4777.8,4777.7,0.18471363]
[1756027936944,1.77035853,4777.8,4777.7,0.18471363]
[1756027937138,1.77035853,4777.8,4777.2,1.15430318]
[1756027937337,19.029,4777.7,4777.3,0.41882]
[1756027937936,19.029,4777.7,4777.3,0.2248]
[1756027938439,19.029,4777.7,4777.5,0.4188]
[1756027941034,19.029,4777.7,4777.3,0.64362]
[1756027941232,19.029,4777.7,4777.3,0.2248]
[1756027941439,19.44779,4777.7,4777.2,0.73547318]
[1756027941743,19.44779,4777.7,4777.2,0.96027318]
[1756027942138,0.41881,4777.5,4777.2,0.96027318]
[1756027942342,19.44779,4777.7,4777.2,0.96027318]
[1756027943540,1.08562927,4777.6,4777.3,0.2248]
[1756027943739,0.41882,4777.4,4777.2,0.73547318]
[1756027943939,0.66682927,4777.3,4777.2,0.73547318]
[1756027945541,19.69782927,4777.3,4777.2,0.96027318]
[1756027946445,19.69782927,4777.3,4777.2,1.18887318]
[1756027946636,19.69782927,4777.3,4777.2,1.1302028]
[1756027949244,19.69782927,4777.3,4777.2,1.3588028]
[1756027949448,19.69782927,4777.3,4777.2,1.8626028]
[1756027949843,19.69782927,4777.3,4777.2,1.5040028]
[1756027950850,19.69882927,4777.3,4777.2,2.2437028]
[1756027952050,19.72181086,4777.3,4777.2,2.2437028]
[1756027954254,19.88108712,4777.3,4777.2,2.2437028]
[1756027954752,19.88108712,4777.3,4777.2,1.3588028]
[1756027955353,19.88108712,4777.3,4777.2,2.2437028]
[1756027959255,19.19127626,4777.3,4777.2,2.2437028]
[1756027959555,19.88196957,4777.3,4777.2,2.2437028]
[1756027962052,19.88196957,4777.3,4777.2,1.3588028]
[1756027963055,19.88196957,4777.3,4777.2,1.1302028]
[1756027964951,19.88196957,4777.3,4777.2,1.8623028]
[1756027965548,19.88196957,4777.3,4777.2,0.9054028]
[1756027965758,19.88196957,4777.3,4776.8,1.03704049]
[1756027965958,1.50482908,4777.1,4776.8,1.03704049]
[1756027966149,0.69069331,4777.0,4776.8,1.03704049]
[1756027966353,19.72069331,4776.9,4776.8,1.45591049]
[1756027967455,19.72069331,4776.9,4776.8,1.67351049]
[1756027969168,19.72069331,4776.9,4776.8,2.02831049]
[1756027969366,19.72069331,4776.9,4776.8,2.18801049]
[1756027970670,19.72069331,4776.9,4776.8,2.56641049]
[1756027979569,19.72069331,4776.9,4776.8,2.21161049]
[1756027980375,19.72069331,4776.9,4776.8,2.56641049]
[1756027980782,19.72006454,4776.9,4776.8,2.56641049]
[1756027981782,19.71606454,4776.9,4776.8,2.56641049]
[1756027983183,19.71390831,4776.9,4776.8,2.56641049]
[1756027985885,19.71390831,4776.9,4776.8,2.75734677]
[1756027986083,19.71390831,4776.9,4776.8,2.56641049]
[1756027986283,19.71390831,4776.9,4776.8,2.75734734]
[1756027986480,19.71390831,4776.9,4776.8,2.56641049]
[1756027987586,19.71390831,4776.9,4776.8,2.75734928]
[1756027987782,19.71390831,4776.9,4776.8,2.56641049]
[1756027990290,19.71390831,4776.9,4776.8,2.75735378]
[1756027990684,19.71390831,4776.9,4776.8,2.56641049]
[1756027992790,19.71390831,4776.9,4776.8,2.75735642]
[1756027995493,19.71390831,4776.9,4776.8,2.56641049]
[1756027995693,19.71390831,4776.9,4776.8,2.7573476]
[1756027996089,19.71390831,4776.9,4776.8,2.75734662]
[1756027996290,19.71385287,4776.9,4776.8,2.75734662]
[1756027996491,19.71385287,4776.9,4776.8,2.56641049]
[1756027997589,0.68785287,4776.9,4776.8,2.56641049]
[1756028004195,0.68785287,4776.9,4776.8,1.83320049]
[1756028004396,2.19268195,4776.9,4776.8,0.80324049]
[1756028004600,0.41888,4776.7,4776.3,1.02704574]
[1756028004802,1.50651645,4776.4,4776.3,1.02704574]
[1756028005101,0.68785287,4776.4,4776.3,1.02704574]
[1756028005794,0.68785287,4776.4,4776.3,0.66484574]
[1756028005795,4.68785287,4776.4,4776.3,0.66484574]
[1756028005990,6.58531933,4776.4,4775.8,1.01522027]
[1756028006194,0.68785287,4776.3,4776.2,0.4388]
[1756028006397,19.70685287,4776.3,4776.2,0.4388]
[1756028006794,19.70685287,4776.3,4776.2,0.5868]
[1756028007000,21.21034039,4776.3,4776.2,1.2898]
[1756028007201,19.70685287,4776.3,4776.2,1.2898]
[1756028008699,19.70585287,4776.3,4776.2,1.2898]
[1756028010597,19.70585287,4776.3,4776.2,0.9508]
[1756028010803,19.70585287,4776.3,4776.2,0.5868]
[1756028011807,19.70585287,4776.3,4776.2,1.2898]
[1756028013401,19.70585287,4776.3,4776.2,0.9508]
[1756028013600,19.70585287,4776.3,4776.2,1.2898]
[1756028016507,0.68785287,4776.3,4776.2,1.2898]
[1756028017799,0.15927626,4777.3,4777.2,0.41883]
[1756028018003,0.73707626,4777.3,4777.2,1.73443]
[1756028018812,0.15927626,4777.3,4777.2,1.73443]
[1756028019210,0.50237626,4777.3,4777.2,1.73443]
[1756028023606,0.15927626,4777.3,4777.2,1.73443]
[1756028023813,0.3431,4778.0,4777.9,1.73437]
[1756028024010,19.017,4778.2,4777.9,1.3156]
[1756028024210,19.5948,4778.7,4778.6,1.2089]
[1756028024413,19.5948,4778.7,4778.6,1.7343]
[1756028025113,0.5778,4778.7,4778.6,1.7343]
[1756028027720,0.16862077,4779.1,4779.0,1.73425]
[1756028040922,0.51172077,4779.1,4779.0,1.73425]
[1756028041122,0.16862077,4779.1,4779.0,1.73425]
[1756028042134,0.51172077,4779.1,4779.0,1.73425]
[1756028042327,0.16862077,4779.1,4779.0,1.73425]
[1756028043328,0.74642077,4779.1,4779.0,1.73425]
[1756028044324,1.4132229,4779.1,4779.0,1.73425]
[1756028044525,0.16862077,4779.1,4779.0,1.73425]
[1756028044935,0.51172077,4779.1,4779.0,1.73425]
[1756028045333,0.74642077,4779.1,4779.0,1.73425]
[1756028046330,1.41406508,4779.1,4779.0,1.73425]
[1756028046733,0.83626508,4779.1,4779.0,1.73425]
[1756028051537,1.41036508,4779.1,4779.0,1.73425]
[1756028052445,1.41036508,4779.1,4779.0,1.92585478]
[1756028054442,1.41036508,4779.1,4779.0,1.73425]
[1756028054643,1.41036508,4779.1,4779.0,1.92610814]
[1756028055129,1.18966508,4779.1,4779.0,1.92610814]
[1756028055335,0.83626508,4779.1,4779.0,1.92610814]
[1756028063346,0.83626508,4779.1,4779.0,2.0916163]
[1756028064448,0.83626508,4779.1,4779.0,1.89975816]
[1756028064650,0.83626508,4779.1,4779.0,2.09286792]
[1756028065143,0.83626508,4779.1,4779.0,2.09286796]
[1756028065344,0.83626508,4779.1,4779.0,1.92733613]
[1756028065647,0.59566508,4779.1,4779.0,1.92733613]
[1756028067452,0.59566508,4779.1,4779.0,2.09801694]
[1756028068153,0.15905508,4779.1,4779.0,2.09801694]
[1756028068362,5.08e-06,4779.1,4779.0,2.09801694]
[1756028068559,0.3534,4779.7,4779.6,1.74957]
[1756028068755,0.3534,4779.7,4779.6,1.94265613]
[1756028069268,0.8213,4780.2,4780.1,1.51353]
[1756028069564,1.0559,4780.2,4780.1,1.74953]
[1756028073569,0.1,4780.2,4780.1,1.74953]
[1756028074067,0.2472,4780.2,4780.1,1.74953]
[1756028074567,0.1,4780.2,4780.1,1.74953]
[1756028074866,0.1,4780.2,4780.1,1.94221361]
[1756028078361,0.1,4780.2,4780.1,2.20675669]
[1756028080365,0.77486573,4780.2,4780.1,2.20675669]
[1756028081269,0.77486573,4780.2,4780.1,2.20646273]
[1756028081858,0.52185169,4780.8,4780.7,0.96337]
[1756028082161,0.18015169,4780.8,4780.7,2.02054773]
[1756028084567,0.18015169,4780.8,4780.7,1.75607]
[1756028084967,0.18015169,4780.8,4780.7,2.0202837]
[1756028085762,0.18015169,4780.8,4780.7,2.02023992]
[1756028086568,0.15926194,4780.9,4780.8,1.3376]
[1756028086762,0.15926194,4780.9,4780.8,1.79398289]
[1756028087165,0.15926194,4780.9,4780.8,1.3376]
[1756028091472,0.88466194,4780.9,4780.8,1.3376]
[1756028091674,1.10196194,4780.9,4780.8,1.3376]
[1756028092265,0.88466194,4780.9,4780.8,1.3376]
[1756028092673,1.10196194,4780.9,4780.8,1.3376]
[1756028093371,0.88466194,4780.9,4780.8,1.3376]
[1756028093768,1.55708284,4780.9,4780.8,1.3376]
[1756028094771,1.77438284,4780.9,4780.8,0.9874]
[1756028094974,1.77438284,4780.9,4780.8,1.3376]
[1756028095369,1.55708284,4780.9,4780.8,1.3376]
[1756028096166,0.83168284,4780.9,4780.8,1.3376]
[1756028096771,1.55708284,4780.9,4780.8,1.3376]
[1756028097667,1.77438284,4780.9,4780.8,1.3376]
[1756028098264,1.77438284,4780.9,4780.8,0.4425]
[1756028098463,1.77438284,4780.9,4780.8,1.3376]
[1756028100372,0.3417,4780.8,4780.7,0.41847]
[1756028100576,1.3978209,4780.8,4780.7,1.75607]
[1756028101377,0.6724209,4780.8,4780.7,1.75607]
[1756028102282,0.6724209,4780.8,4780.7,1.93192452]
[1756028103978,0.6724209,4780.8,4780.7,1.93197978]
[1756028104979,1.0141209,4780.8,4780.7,1.93197978]
[1756028105180,1.1625209,4780.8,4780.7,1.93197978]
[1756028105379,1.3978209,4780.8,4780.7,1.93197978]
[1756028106678,1.6268209,4780.8,4780.7,1.93197978]
[1756028106882,1.3978209,4780.8,4780.7,1.93197978]
[1756028107077,0.6724209,4780.8,4780.7,1.93197978]
[1756028108386,1.0284209,4780.8,4780.7,1.93197978]
[1756028108587,0.6724209,4780.8,4780.7,1.93197978]
[1756028109691,1.0284209,4780.8,4780.7,1.93197978]
[1756028111190,0.6724209,4780.8,4780.7,1.93197978]
[1756028112088,1.0284209,4780.8,4780.7,1.93197978]
[1756028112490,0.6724209,4780.8,4780.7,1.93197978]
[1756028112994,9e-07,4780.8,4780.7,1.93197978]
[1756028113290,0.15926194,4780.9,4780.8,1.3275]
[1756028113491,0.15926194,4780.9,4780.8,1.50340978]
[1756028113689,0.15926194,4780.9,4780.8,1.3275]
[1756028113890,0.15926194,4780.9,4780.8,1.50363028]
[1756028117196,0.51526194,4780.9,4780.8,1.50363028]
[1756028117388,0.90006194,4780.9,4780.8,1.50363028]
[1756028118195,0.15926194,4780.9,4780.8,1.50363028]
[1756028119187,1.94e-06,4780.9,4780.8,1.50363028]
[1756028123688,1.94e-06,4780.9,4780.8,1.3275]
[1756028123891,1.94e-06,4780.9,4780.8,1.50378698]
[1756028124593,1.94e-06,4780.9,4780.8,1.50377569]
[1756028125197,0.66456108,4780.9,4780.8,1.50377569]
[1756028128402,1.02056108,4780.9,4780.8,1.50377569]
[1756028129101,0.66456108,4780.9,4780.8,1.50377569]
[1756028132508,1.40536108,4780.9,4780.8,1.76621975]
[1756028133203,0.66456108,4780.9,4780.8,1.76621975]
[1756028133809,0.66456108,4780.9,4780.8,1.77363406]
[1756028139014,1.00446108,4780.9,4780.8,1.77363406]
[1756028139216,1.23286108,4780.9,4780.8,1.77363406]
[1756028140417,1.38366108,4780.9,4780.8,1.77363406]
[1756028143821,1.38366108,4780.9,4780.8,1.77828139]
[1756028144020,0.81536108,4780.9,4780.8,1.77828139]
[1756028144319,0.66456108,4780.9,4780.8,1.77828051]
[1756028144616,0.82998752,4782.4,4781.8,0.0209]
[1756028144809,0.25439086,4783.0,4782.9,0.41829]
[1756028145016,0.3399,4783.7,4783.6,0.5369]
[1756028145211,0.3399,4783.7,4783.6,1.75500051]
[1756028145413,0.6042,4784.3,4784.2,0.72147]
[1756028145715,0.3792,4784.3,4784.2,2.21908382]
[1756028146014,0.89213556,4784.6,4784.5,1.76935]
[1756028146213,0.17303556,4784.6,4784.5,2.21906382]
[1756028146715,0.19053897,4784.6,4784.5,2.21906382]
[1756028146912,1.31246364,4785.1,4785.0,1.7693]
[1756028147114,1.16166364,4785.1,4785.0,2.21901382]
[1756028147310,1.31246364,4785.1,4785.0,2.21901382]
[1756028147910,0.59336364,4785.1,4785.0,2.21901382]
[1756028149219,0.35286364,4785.1,4785.0,2.21901382]
[1756028149918,0.36656426,4785.1,4785.0,2.21901382]
[1756028151224,0.70646426,4785.1,4785.0,21.31401382]
[1756028151414,0.70646426,4785.1,4785.0,21.32622293]
[1756028151619,0.36656426,4785.1,4785.0,21.32622293]
[1756028152527,0.36656426,4785.1,4785.0,21.13016599]
[1756028153116,0.89206426,4785.1,4785.0,2.03516599]
[1756028153321,0.89206426,4785.1,4785.0,21.12116599]
[1756028153524,0.66366426,4785.1,4785.0,21.12116599]
[1756028153819,0.36656426,4785.1,4785.0,21.11989836]
[1756028155421,0.36897473,4785.1,4785.0,21.11989836]
[1756028156225,0.70887473,4785.1,4785.0,21.11989836]
[1756028156421,0.72397842,4785.1,4785.0,21.11989836]
[1756028156627,0.87477842,4785.1,4785.0,20.8553]
[1756028157623,0.38407842,4785.1,4785.0,20.8553]
[1756028158335,0.72397842,4785.1,4785.0,20.8553]
[1756028158827,1.09867842,4785.1,4785.0,20.8553]
[1756028159034,1.32227842,4785.1,4785.0,20.8553]
[1756028159534,1.47307842,4785.1,4785.0,20.8553]
[1756028159929,0.38407842,4785.1,4785.0,20.8553]
[1756028160231,5.69807842,4785.1,4785.0,0.4181]
[1756028161728,1.314,4784.9,4784.8,0.41811]
[1756028162818,0.5635,4784.8,4784.6,0.41813]
[1756028163023,0.3399,4784.2,4784.0,0.41819]
[1756028163219,1.0904,4784.1,4784.0,0.64839]
[1756028163427,1.314,4784.1,4784.0,1.76939]
[1756028163626,0.7505,4784.7,4784.6,0.41814]
[1756028163832,0.78171478,4784.7,4784.6,1.76934]
[1756028164026,0.78171478,4784.7,4784.6,1.42024]
[1756028164329,1.12021478,4784.7,4784.6,1.76934]
[1756028164631,0.75031478,4784.7,4784.6,1.76934]
[1756028164827,0.03121478,4784.7,4784.6,1.76934]
[1756028166018,0.35286364,4785.1,4785.0,1.4202]
[1756028166227,0.35286364,4785.1,4785.0,20.8543]
[1756028171350,0.35286364,4785.1,4785.0,21.11822376]
[1756028171847,0.35286364,4785.1,4785.0,21.11422376]
[1756028172640,0.35286364,4785.1,4785.0,21.11453285]
[1756028173554,0.94652107,4785.1,4785.0,21.11494756]
[1756028174146,0.94652107,4785.1,4785.0,21.31100274]
[1756028174346,0.35286364,4785.1,4785.0,21.31100274]
[1756028174648,1.1224,4786.1,4786.0,1.76321]
[1756028174849,1.71749361,4786.1,4786.0,2.02785756]
[1756028175049,1.93929361,4786.1,4786.0,2.02785756]
[1756028175757,1.93929361,4786.1,4786.0,0.89859187]
[1756028176051,1.93929361,4786.1,4786.0,1.62772925]
[1756028176254,1.93929361,4786.1,4786.0,1.57338494]
[1756028176450,1.93929361,4786.1,4786.0,1.80748494]
[1756028176650,1.93929361,4786.1,4786.0,1.22888494]
[1756028178553,1.95921112,4786.1,4786.0,1.22888494]
[1756028179160,1.95921112,4786.1,4786.0,0.84338494]
[1756028179351,1.96808363,4786.1,4786.0,0.84338494]
[1756028179557,1.96808363,4786.1,4786.0,1.07848494]
[1756028180457,1.96808363,4786.1,4786.0,0.84338494]
[1756028181057,1.96808363,4786.1,4786.0,0.68338494]
[1756028181957,1.96808363,4786.1,4786.0,1.57338494]
[1756028182457,1.96808363,4786.1,4786.0,1.22888494]
[1756028182658,5.96808363,4786.1,4786.0,0.68334612]
[1756028182857,1.1798,4786.0,4785.9,0.41802]
[1756028183054,1.92649361,4786.0,4785.9,0.41802]
[1756028183450,1.95528363,4786.0,4785.9,0.41802]
[1756028184557,1.16948363,4786.0,4785.6,0.3445]
[1756028184759,0.7858,4785.8,4785.7,0.76254]
[1756028184959,1.92649361,4785.8,4785.7,0.99664]
[1756028185260,1.97039915,4785.8,4785.7,1.30704]
[1756028185456,1.97039915,4785.8,4785.7,1.52814]
[1756028185962,1.97039915,4785.8,4785.7,1.30704]
[1756028186162,1.92649361,4785.8,4785.7,1.52814]
[1756028186363,1.98407365,4785.8,4785.7,1.52814]
[1756028186566,1.98407365,4785.8,4785.7,1.95929119]
[1756028186860,1.41377365,4785.8,4785.7,1.95929119]
[1756028187051,1.18507365,4785.8,4785.7,1.95929119]
[1756028187662,1.41377365,4785.8,4785.7,1.95929119]
[1756028188162,2.91573392,4785.8,4785.7,1.95929119]
[1756028188359,1.41377365,4785.8,4785.7,1.95929119]
[1756028188558,2.91573392,4785.8,4785.7,1.95929119]
[1756028188759,1.41377365,4785.8,4785.7,1.95929119]
[1756028188962,2.91573392,4785.8,4785.7,1.95929119]
[1756028189355,1.74907365,4785.8,4785.7,1.95929119]
[1756028189550,1.41377365,4785.8,4785.7,1.95929119]
[1756028189751,0.96327365,4785.8,4785.7,1.95929119]
[1756028189955,0.81167365,4785.8,4785.7,1.95929119]
[1756028190357,0.96327365,4785.8,4785.7,1.95929119]
[1756028190557,1.41377365,4785.8,4785.7,1.95929119]
[1756028190761,1.74917365,4785.8,4785.7,1.95929119]
[1756028191859,1.76423831,4785.8,4785.7,1.95929119]
[1756028192664,1.76423831,4785.8,4785.7,1.95928568]
[1756028194267,1.99923831,4785.8,4785.7,1.95928568]
[1756028194967,1.99923831,4785.8,4785.7,2.22132473]
[1756028197262,1.76423831,4785.8,4785.7,2.22132473]
[1756028197567,2.00283831,4785.8,4785.7,2.22132473]
[1756028198367,2.00283831,4785.8,4785.7,0.87612473]
[1756028198862,2.00283831,4785.8,4785.7,1.82412473]
[1756028199068,2.00283831,4785.8,4785.7,2.20392473]
[1756028202166,2.00283831,4785.8,4785.7,1.59912473]
[1756028202373,2.00283831,4785.8,4785.7,1.59855363]
[1756028202572,2.00283831,4785.8,4785.7,1.59855355]
[1756028202869,2.00283831,4785.8,4785.7,2.20335355]
[1756028203875,0.14731831,4785.8,4785.7,2.20335355]
[1756028204067,0.0726447,4785.8,4785.7,2.20335355]
[1756028204772,0.0726447,4785.8,4785.7,2.22415355]
[1756028205274,0.62269727,4786.4,4786.3,1.74579]
[1756028205478,0.93149727,4786.4,4786.3,2.20330355]
[1756028206076,1.26619727,4786.4,4786.3,2.19276719]
[1756028206282,1.26619727,4786.4,4786.3,2.00708574]
[1756028206464,0.93149727,4786.4,4786.3,2.00708574]
[1756028207377,1.50479727,4786.4,4786.3,2.00708574]
[1756028208676,0.56089727,4786.4,4786.3,2.00708574]
[1756028208978,0.93149727,4786.4,4786.3,2.00708574]
[1756028209182,1.26619727,4786.4,4786.3,2.00708574]
[1756028209572,0.93149727,4786.4,4786.3,2.00708574]
[1756028209968,0.16959727,4786.4,4786.3,2.00708574]
[1756028212573,0.16959727,4786.4,4786.3,2.00669972]
[1756028213188,0.16959727,4786.4,4786.3,2.00670021]
[1756028213374,1.26619727,4786.4,4786.3,2.00667558]
[1756028214585,0.93149727,4786.4,4786.3,2.00667558]
[1756028216088,1.26103015,4787.2,4787.1,0.5379]
[1756028216385,1.8744012,4787.2,4787.1,0.41792]
[1756028216580,1.8744012,4787.2,4787.1,0.67876085]
[1756028216786,2.6666012,4787.2,4787.1,0.67876085]
[1756028218584,2.6666012,4787.2,4787.1,1.40176085]
[1756028218787,1.3270012,4787.2,4787.1,2.00656085]
[1756028219484,1.87757987,4789.1,4787.1,2.00656085]
[1756028219485,0.396,4788.9,4788.8,1.52057]
[1756028219688,0.5474,4788.9,4788.8,1.52057]
[1756028221185,1.41189305,4789.4,4789.3,0.41773]
[1756028221382,1.41189305,4789.4,4789.1,0.41774]
[1756028221586,1.3396,4788.6,4788.5,0.4178]
[1756028221892,1.3396,4788.6,4788.5,0.6782882]
[1756028222077,1.3396,4788.6,4788.5,0.67805242]
[1756028223182,1.3396,4788.6,4788.5,1.78085242]
[1756028224391,1.3396,4788.6,4788.5,1.7456]
[1756028224790,1.3396,4788.6,4788.5,0.9557]
[1756028224991,1.3396,4788.6,4788.5,0.4178]
[1756028228792,0.2207,4788.4,4786.7,0.7972]
[1756028228990,1.1436,4786.9,4786.8,1.21344744]
[1756028229196,1.1436,4786.9,4786.8,2.01064744]
[1756028229497,0.7485,4787.3,4787.2,1.75101]
[1756028230196,1.1436,4787.3,4787.2,1.75101]
[1756028230994,1.1436,4787.3,4787.2,0.41791]
[1756028232083,1.1436,4787.3,4787.2,2.01091362]
[1756028232296,1.1436,4787.3,4787.2,0.67781362]
[1756028232497,1.74980965,4787.3,4787.2,0.41791]
[1756028232695,1.1436,4787.3,4787.2,0.67788186]
[1756028232892,1.1436,4787.3,4787.2,2.01098186]
[1756028233090,1.1436,4787.3,4787.2,1.21378186]
[1756028233285,1.74990539,4787.3,4787.2,0.67788186]
[1756028234097,1.74990539,4787.3,4787.2,0.41791]
[1756028234494,1.1436,4786.4,4786.3,0.8753]
[1756028234799,1.1436,4786.4,4786.3,0.67814647]
[1756028235192,1.75015641,4786.4,4786.3,0.41799]
[1756028235595,1.75015641,4786.4,4786.1,0.418]
[1756028235902,1.1436,4786.2,4786.1,0.418]
[1756028236600,1.1436,4786.2,4786.1,0.67818997]
[1756028236898,1.74998917,4786.2,4786.1,0.26018997]
[1756028237298,1.1436,4786.1,4786.0,0.41801]
[1756028237603,1.1436,4786.1,4786.0,0.67816994]
[1756028238995,1.74969982,4786.1,4785.8,0.41803]
[1756028239196,0.3747,4785.9,4785.8,0.41803]
[1756028239406,1.1438,4785.9,4785.8,0.26006292]
[1756028239701,1.1438,4785.9,4785.8,0.67809292]
[1756028240295,1.1438,4785.9,4785.8,0.41803]
[1756028240695,1.1438,4785.9,4785.6,0.41805]
[1756028240894,1.1438,4785.7,4785.6,0.41805]
[1756028241096,1.1438,4785.7,4785.6,0.6780397]
[1756028241296,1.1438,4785.7,4785.6,0.67801333]
[1756028241995,1.1438,4785.7,4785.6,0.41805]
[1756028242190,1.1438,4785.7,4784.9,0.3394]
[1756028242401,0.2369,4785.6,4785.2,0.41808]
[1756028242590,1.1438,4785.3,4785.2,0.41808]
[1756028242795,1.1438,4785.3,4785.2,0.6779598]
[1756028243002,0.5204,4785.3,4785.1,0.41809]
[1756028243203,1.1438,4785.2,4785.1,0.41809]
[1756028243797,1.1438,4785.2,4785.1,0.96729]
[1756028243999,0.5116,4786.0,4785.9,0.5359]
[1756028244197,0.7485,4786.6,4786.5,0.95387]
[1756028244397,0.7485,4786.6,4786.5,1.75107]
[1756028245103,1.1438,4786.6,4786.5,1.75107]
[1756028245695,1.1438,4786.6,4786.5,1.52707]
[1756028247507,1.1438,4787.0,4786.9,0.79444]
[1756028247706,1.1438,4787.0,4786.9,0.95384]
[1756028247909,1.1438,4787.0,4786.9,1.75104]
[1756028248598,0.5479,4787.4,4787.3,0.4179]
[1756028248799,1.1438,4787.4,4787.3,1.527]
[1756028249106,1.1438,4787.4,4787.3,0.4179]
[1756028249706,19.125,4787.6,4786.1,1.06581]
[1756028249707,1.1438,4787.3,4787.2,1.75101]
[1756028251708,1.1438,4787.3,4787.2,1.52701]
[1756028251898,1.1438,4787.3,4787.2,1.29321]
[1756028253211,1.1438,4787.3,4787.2,1.52701]
[1756028253417,1.1438,4787.3,4786.8,0.5634]
[1756028253600,0.58243,4787.0,4786.9,0.25974249]
[1756028253804,0.9056,4786.3,4786.2,0.7979]
[1756028254012,1.1425,4786.3,4786.2,1.05772468]
[1756028254714,1.17128787,4786.3,4786.2,1.05772468]
[1756028255216,1.17128787,4786.3,4786.2,0.67782468]
[1756028255712,1.17128787,4786.3,4786.2,1.39372468]
[1756028255910,1.17128787,4786.3,4786.2,0.89832468]
[1756028257016,20.30528787,4786.3,4786.2,0.89832468]
[1756028257815,20.91273977,4786.3,4786.2,0.25982468]
[1756028258012,20.91273977,4786.3,4785.2,1.04521]
[1756028258013,0.6236,4785.7,4785.2,0.2395]
[1756028258215,1.1644,4785.3,4785.2,1.72929]
[1756028258518,1.1644,4785.3,4785.2,1.98991446]
[1756028258813,1.19318787,4785.3,4785.2,1.98991446]
[1756028259211,0.02878787,4785.3,4785.2,1.98991446]
[1756028259411,0.02878787,4785.3,4785.2,2.01071446]
[1756028260308,0.02878787,4785.3,4785.2,1.98991446]
[1756028260508,1.0128,4785.8,4785.7,0.41804]
[1756028260715,0.92952105,4785.8,4785.7,1.95868499]
[1756028261120,1.78842105,4785.8,4785.7,1.74048499]
[1756028261423,1.78842105,4785.8,4785.7,1.73985094]
[1756028261718,1.80359205,4785.8,4785.7,1.95808136]
[1756028262119,1.80359205,4785.8,4785.7,1.95808129]
[1756028262622,1.81481262,4785.8,4785.7,1.95808129]